Cogmind - Beta 10.1 @@@ ROGUE MODE // 2021.06.06 @ 19:04:49 // Winter2019/RPGLIKE Player: Farfid Result: Destroyed by 8R-AWN with 8R-AWN's Boregun Performance ------------- Evolutions (1) 500 Regions Visited (5) 1000 Robots Destroyed (47) 235 Value Destroyed (987) 987 Prototype IDs (23) 460 Alien Tech Used (0) 0 Bonus (252) 252 TOTAL SCORE: 3434 Bonus ------- Aligned with FarCom 300 Friendly Fire -48 Cogmind --------- Core Integrity 0/750 Matter 50/300 Energy 88/100 System Corruption 0% Temperature Cool (3) Movement Hovering (66) Location -9/Exiles Parts ------- > --- POWER (1) -------- (None) > --- PROPULSION (3) --- Improved Hover Unit Combat Airjet > --- UTILITY (2) ------ High-powered Tractor Beam > --- WEAPON (2) ------- Mini Grenade Launcher > --- INVENTORY (2) ---- Improved Datajack Peak State ------------ > --- POWER ------------ Light Nuclear Core > --- PROPULSION ------- Improved Hover Unit Improved Hover Unit Combat Airjet > --- UTILITY ---------- Light Armor Plating High-powered Tractor Beam > --- WEAPON ----------- Heavy Battle Rifle Mini Grenade Launcher > --- INVENTORY -------- Protomatter Improved Datajack [Rating: 21] Favorites ----------- Power Light Ion Engine Engine Light Ion Engine Power Core Light Nuclear Core Propulsion Wheel Wheel Wheel Hover Unit Improved Hover Unit Utility High-powered Tractor Beam Device High-powered Tractor Beam Protection Light Armor Plating Weapon Heavy Battle Rifle Ballistic Gun Heavy Battle Rifle Ballistic Cannon Light Cannon Launcher Mini Grenade Launcher Build | -11 -10 -10 -9 -9 -9 ------- Run | Scr Mat Min Mat Min Exi Slots Evolved 4 | 2 . . 1 1 . Power . | . . . . . . Propulsion 2 | 1 . . 1 . . Utility 1 | 1 . . . . . Weapon 1 | . . . . 1 . Parts Attached 15 | 4 1 1 6 3 . Power 2 | 1 . . 1 . . Engine 1 | 1 . . . . . Core 1 | . . . 1 . . Reactor . | . . . . . . Propulsion 6 | 2 . . 3 1 . Treads . | . . . . . . Leg . | . . . . . . Wheel 2 | 2 . . . . . Hover 4 | . . . 3 1 . Flight . | . . . . . . Utility 2 | . . . 2 . . Device 1 | . . . 1 . . Storage . | . . . . . . Processor . | . . . . . . Hackware . | . . . . . . Protection 1 | . . . 1 . . Artifact . | . . . . . . Weapon 5 | 1 1 1 . 2 . Energy Gun . | . . . . . . Energy Cannon . | . . . . . . Ballistic Gun 3 | 1 . 1 . 1 . Ballistic Cannon 1 | . 1 . . . . Launcher 1 | . . . . 1 . Special Weapon . | . . . . . . Impact Weapon . | . . . . . . Slashing Weapon . | . . . . . . Piercing Weapon . | . . . . . . Special Melee Weapon . | . . . . . . Unidentified Prototypes . | . . . . . . Parts Lost 4 | . . . . 1 3 Power 1 | . . . . . 1 Propulsion 1 | . . . . . 1 Utility 1 | . . . . 1 . Weapon 1 | . . . . . 1 Highest Loss Streak 2 | . . . . 1 2 Average Slot Usage (%) 83 | . 66 66 92 98 81 Engine 9 | . 16 16 12 . . Core 5 | . . . 3 12 10 Wheel 20 | . 33 33 30 . . Hover 13 | . . . 3 39 33 Device 8 | . . . 13 12 12 Protection 5 | . . . 11 11 . Ballistic Gun 11 | . 1 9 15 11 10 Ballistic Cannon 2 | . 14 6 . . . Launcher 3 | . . . . 8 12 Naked Turns . | . . . . . . Heaviest Build 14 | 5 6 7 13 14 11 Greatest Support 43 | 25 25 25 29 43 43 Greatest Overweight (x) . | . . . . . . Average Overweight (x) . | . . . . . . Largest Inventory Capacity 2 | 1 1 1 2 2 2 Average Capacity 1 | 1 1 1 1 2 2 Most Carried 2 | . 1 . 2 2 2 Average Carried . | . . . 1 1 1 Final Capacity 2 | 1 1 1 2 2 2 Final Carried 2 | . . . 2 1 1 Class Distribution -------------------- 91% | Mutant 8% | Scavenger-Mutant Dominant Class ---------------- Mutant | -10/Materials Mutant | -10/Mines Mutant | -9/Materials Mutant | -9/Mines Mutant | -9/Exiles Resources | -11 -10 -10 -9 -9 -9 ----------- Run | Scr Mat Min Mat Min Exi Matter Collected 753 | 215 148 85 105 200 . Remotely 262 | . . . 62 200 . Salvage Created 585 | . 178 102 268 26 11 Parts 81 | . 25 6 46 4 . Haulers Intercepted . | . . . . . . Recyclers Shooed . | . . . . . . Parts Field Recycled . | . . . . . . Retrieved Matter . | . . . . . . Parts Self-Destructed . | . . . . . . Prevented . | . . . . . . Kills | -11 -10 -10 -9 -9 -9 ------- Run | Scr Mat Min Mat Min Exi Combat Hostiles Destroyed 43 | . 10 2 12 14 5 Guns 17 | . . 2 12 3 . Cannons 10 | . 10 . . . . AOE 16 | . . . . 11 5 Classes Destroyed 7 | . 2 3 1 1 . Builder 2 | . 1 1 . . . Tunneler 1 | . . 1 . . . Recycler 1 | . . 1 . . . Swarmer 6 | . . 2 . 4 . Grunt 15 | . 10 . 5 . . Sentry 7 | . . . 7 . . Assembled 15 | . . . . 10 5 Best Kill Streak 11 | . 11 3 3 10 5 Combat Bots Only 10 | . 10 2 3 10 5 Max Kills in Single Turn 3 | . 1 1 1 3 2 Gunslinging . | . . . . . . Exploded 3 | . . . . 3 2 Melee . | . . . . . . Uniques/NPCs Destroyed . | . . . . . . Combat | -11 -10 -10 -9 -9 -9 -------- Run | Scr Mat Min Mat Min Exi Damage Taken 2021 | . 272 126 346 551 726 Core 1571 | . 227 109 281 381 573 Absorbed by Shields . | . . . . . . Redirected to Core 1051 | . 140 50 152 329 380 Core Remaining (%) 93 | 100 . 87 . . . Volleys Fired 156 | . 29 26 45 25 31 Largest 2 | . 1 1 1 1 2 Hottest 63 | . 35 35 33 33 63 Shots Fired 162 | . 29 26 45 25 37 Gun 107 | . . 22 45 14 26 Cannon 33 | . 29 4 . . . Launcher 22 | . . . . 11 11 Special . | . . . . . . Kinetic 140 | . 29 26 45 14 26 Thermal . | . . . . . . Explosive 22 | . . . . 11 11 Electromagnetic . | . . . . . . Robot Hit Streak 13 | . 7 3 9 5 13 Robot Miss Streak 5 | . 2 5 3 3 1 Penetration Max . | . . . . . . Secondary Targets . | . . . . . . Shots Hit Robots 108 | . 20 11 33 11 33 Core Hits 67 | . 12 5 17 21 12 Critical Hits 1 | . . 1 . . . Critical Kills 1 | . . 1 . . . Critical Parts Destroyed . | . . . . . . Melee Attacks . | . . . . . . Impact . | . . . . . . Slashing . | . . . . . . Piercing . | . . . . . . Sneak Attacks . | . . . . . . Combat Hostiles . | . . . . . . Follow-up Attacks . | . . . . . . Damage Inflicted 3518 | . 425 303 736 1054 1000 Guns 1673 | . . 249 736 180 508 Cannons 479 | . 425 54 . . . Explosions 1366 | . . . . 874 492 Melee . | . . . . . . Ramming . | . . . . . . Kinetic 2152 | . 425 303 736 180 508 Thermal 320 | . . . . 320 . Explosive 1046 | . . . . 554 492 Electromagnetic . | . . . . . . Impact . | . . . . . . Slashing . | . . . . . . Piercing . | . . . . . . Highest Corruption . | . . . . . . Average Corruption . | . . . . . . Corruption Purged . | . . . . . . Overload Shots . | . . . . . . Overflow Damage 55 | . . . . 40 15 Projectiles . | . . . . . . Explosions 55 | . . . . 40 15 Melee . | . . . . . . Knockbacks 8 | . 7 1 . . . Impact . | . . . . . . Kinetic 8 | . 7 1 . . . Secondary . | . . . . . . Self-Inflicted Damage 94 | . . . . 53 41 Shots 3 | . . . . 2 1 Rammed . | . . . . . . Targets Rammed . | . . . . . . Kicked . | . . . . . . Crushed . | . . . . . . Highest Temperature 127 | . 32 . 55 127 75 Average Temperature 37 | . 16 . 21 53 51 Received Heat Transfer 462 | . 162 . 180 120 . Siege Activations . | . . . . . . Robots Corrupted . | . . . . . . Combat Hostiles . | . . . . . . Parts Fried . | . . . . . . Impact Corruptions . | . . . . . . Robots Melted . | . . . . . . Combat Hostiles . | . . . . . . Parts Melted 1 | . . . . 1 . Heat Transferred 450 | . . . . 450 . Parts Sabotaged . | . . . . . . Parts Stolen . | . . . . . . Parts Stripped . | . . . . . . Power Chain Reactions . | . . . . . . Missiles Intercepted . | . . . . . . Alert | -11 -10 -10 -9 -9 -9 ------- Run | Scr Mat Min Mat Min Exi Peak Influence 309 | . 247 151 309 201 . Initial 96 | . . 96 . 96 . Average 130 | . 117 111 184 75 . Maximum Alert Level 1 | . 1 . 1 1 . Low Security (%) 79 | 100 70 100 59 91 . Level 1 20 | . 29 . 40 8 . Level 2 . | . . . . . . Level 3 . | . . . . . . Level 4 . | . . . . . . Level 5 . | . . . . . . High Security . | . . . . . . Max Security . | . . . . . . Squads Dispatched 4 | . 3 . 1 . . Investigation 2 | . 2 . . . . Extermination . | . . . . . . Reinforcement 2 | . 1 . 1 . . Assault . | . . . . . . Garrison . | . . . . . . Intercept . | . . . . . . Construction Impeded . | . . . . . . Haulers Reinforced . | . . . . . . Stealth | -11 -10 -10 -9 -9 -9 --------- Run | Scr Mat Min Mat Min Exi Distress Signals . | . . . . . . Communications Jammed . | . . . . . . Distress Signals . | . . . . . . Times Spotted 65 | . 10 3 24 20 8 Peak Tracking Total 9 | . 4 3 5 8 9 Tactical Retreats 6 | . . . 5 1 . Traps | -11 -10 -10 -9 -9 -9 ------- Run | Scr Mat Min Mat Min Exi Traps Triggered 2 | . 2 . . . . Indirectly . | . . . . . . Trap Hack Attempts . | . . . . . . Triggered . | . . . . . . Disarmed . | . . . . . . Reprogrammed . | . . . . . . Reused . | . . . . . . Traps Extracted . | . . . . . . Installed . | . . . . . . Triggered . | . . . . . . Machines | -11 -10 -10 -9 -9 -9 ---------- Run | Scr Mat Min Mat Min Exi Machines Disabled 5 | . . . . 4 1 Max in Single Turn 4 | . . . . 4 1 Machines Sabotaged . | . . . . . . Garrisons Compromised . | . . . . . . Overloaded Fab Kills . | . . . . . . Fab Network Shutdowns . | . . . . . . Hacking | -11 -10 -10 -9 -9 -9 --------- Run | Scr Mat Min Mat Min Exi Machines Accessed 4 | . 1 . 2 . 1 Terminals 3 | . 1 . 2 . . Fabricators . | . . . . . . Repair Stations . | . . . . . . Recycling Units . | . . . . . . Scanalyzers . | . . . . . . Garrison Access . | . . . . . . Total Hacks 9 | . 2 . 6 . 1 Successful 5 | . 2 . 2 . 1 Failed 4 | . . . 4 . . Catastrophic . | . . . . . . Database Lockouts . | . . . . . . Manual 6 | . . . 5 . 1 Terminals 8 | . 2 . 6 . . Fabricators . | . . . . . . Repair Stations . | . . . . . . Recycling Units . | . . . . . . Scanalyzers . | . . . . . . Garrison Access . | . . . . . . Terminal Hacks 4 | . 2 . 1 . 1 Branch Access Points 1 | . 1 . . . . Locate Traps 1 | . . . 1 . . Zone Layout 1 | . 1 . . . . EX-Prototype ID Bank 1 | . . . . . 1 Fabricator Hacks . | . . . . . . Repair Station Hacks . | . . . . . . Recycling Unit Hacks . | . . . . . . Scanalyzer . | . . . . . . Garrison Access Hacks . | . . . . . . Unauthorized Hacks 1 | . . . 1 . . Terminals 1 | . . . 1 . . Disrupt 1 | . . . 1 . . Fabricators . | . . . . . . Repair Stations . | . . . . . . Recycling Units . | . . . . . . Scanalyzers . | . . . . . . Garrison Access . | . . . . . . Data Cores Recovered . | . . . . . . Used . | . . . . . . Hacking Detections 2 | . . . 2 . . Full Trace Events . | . . . . . . Feedback Events . | . . . . . . Feedback Blocked . | . . . . . . Robot Schematics Acquired . | . . . . . . Robots Built . | . . . . . . Matter . | . . . . . . Time . | . . . . . . Total Robot Build Rating . | . . . . . . Part Schematics Acquired . | . . . . . . Parts Built . | . . . . . . Matter . | . . . . . . Time . | . . . . . . Total Part Build Rating . | . . . . . . Parts Repaired . | . . . . . . Time . | . . . . . . Parts Recycled . | . . . . . . Recycled Matter . | . . . . . . Retrieved Matter . | . . . . . . Retrieved Components . | . . . . . . Parts Scanalyzed . | . . . . . . Part Schematics Acquired . | . . . . . . Parts Damaged . | . . . . . . Bothacking | -11 -10 -10 -9 -9 -9 ------------ Run | Scr Mat Min Mat Min Exi Used RIF Installer . | . . . . . . Robots Hacked . | . . . . . . Non-combat . | . . . . . . Combat . | . . . . . . Robot Hacks Applied . | . . . . . . Relay Couplers Released . | . . . . . . Robots Rewired . | . . . . . . Allies Hacked . | . . . . . . Hacks Repelled . | . . . . . . Allies | -11 -10 -10 -9 -9 -9 -------- Run | Scr Mat Min Mat Min Exi Total Allies 5 | . . . . 5 . Largest Group 3 | . . . . 3 2 Highest-Rated Group 41 | . . . . 41 41 Highest-Rated Ally 31 | . . . . 31 31 Total Orders . | . . . . . . Ally Attacks 22 | . . . . 22 . Total Damage 196 | . . . . 196 . Kills 4 | . . . . 4 . Allies Corrupted . | . . . . . . Allies Melted . | . . . . . . Intel | -11 -10 -10 -9 -9 -9 ------- Run | Scr Mat Min Mat Min Exi Robot Analysis Total . | . . . . . . Derelict Logs Recovered 3 | . . 2 . 1 . Drone Launches . | . . . . . . Drone Recoveries . | . . . . . . Exploration | -11 -10 -10 -9 -9 -9 ------------- Run | Scr Mat Min Mat Min Exi Turns Passed 1747 | 30 141 420 565 316 275 Spaces Moved 1758 | 31 82 445 472 413 315 Core 2 | 2 . . . . . Treads . | . . . . . . Legs . | . . . . . . Wheels 940 | 29 82 445 384 . . Hover 816 | . . . 88 413 315 Flight . | . . . . . . Fastest Speed 50 | 50 80 80 52 52 58 Average Speed 69 | 78 80 80 74 55 58 Slowest Speed 80 | 80 80 80 80 58 66 Overloaded Moves . | . . . . . . Propulsion Burnouts . | . . . . . . Robots Hopped . | . . . . . . Cave-ins Triggered . | . . . . . . Exploration Rate (%) 48 | 3 25 71 56 96 41 Regions Visited 5 Branch Regions 3 Pre-discovered Areas 2 | . . . . 2 . Known Exits Taken 1 | . 1 . . . . Unknown Exits Taken 4 | 1 . 1 1 1 . Scrap Searched 2 | . . . . 2 . Spaces Dug 5 | . . . . 5 . Terrain Destroyed 125 | . . 4 2 74 45 Melee . | . . . . . . Projectile 9 | . . 4 2 2 1 AOE 116 | . . . . 72 44 Terrain Rammed . | . . . . . . Walls Destroyed . | . . . . . . Machines Disabled . | . . . . . . Actions | -11 -10 -10 -9 -9 -9 --------- Run | Scr Mat Min Mat Min Exi Total 2122 | 34 128 482 636 473 369 Wait 128 | . 1 9 82 19 17 Move 1753 | 30 81 444 471 412 315 Hop . | . . . . . . Pick Up 6 | . 1 . 2 . 3 Fast Attach 15 | 4 1 1 6 3 . Attach . | . . . . . . Detach . | . . . . . . Swap . | . . . . . . Drop 12 | . 2 1 3 3 3 Fire 156 | . 29 26 45 25 31 Melee . | . . . . . . Ram . | . . . . . . Kick . | . . . . . . Crush . | . . . . . . Escape Stasis . | . . . . . . Rewire . | . . . . . . Trap . | . . . . . . Miscellaneous 52 | . 13 1 27 11 . Route ------- -11/Scrapyard -10/Materials -10/Mines -9/Materials (discovered 3 exits: [*Mat x2] / [*Min]) -9/Mines (discovered 3 exits: [*Mat x2] / *Exi) -9/Exiles (discovered 1 exit: [*Min]) History --------- Turn | Location | Event 1 | -11/Scrapyard | Upgraded with Propulsion slot (x1) 1 | -11/Scrapyard | Upgraded with Utility slot (x1) 16 | -11/Scrapyard | Discovered new exit (range 16) 31 | -11/Scrapyard | Entered Materials 64 | -10/Materials | Identified exit to Mines 159 | -10/Materials | Destroyed 10 combat bots 172 | -10/Materials | Entered Mines 174 | -10/Mines | Reached level 2 178 | -10/Mines | Learned Materials trap positions 188 | -10/Mines | Discovered new exit (range 14) 190 | -10/Mines | Met a Derelict bent on vengeance 316 | -10/Mines | Found a hidden stash of uninstalled traps 317 | -10/Mines | Build established: Mutant 356 | -10/Mines | A weapon hastily lodged in a ceiling crevice suddenly fell to the ground 592 | -10/Mines | Entered Materials 593 | -9/Materials | Loaded intel: 15 trap records 594 | -9/Materials | Reached level 3 842 | -9/Materials | Discovered new exit (range 14) 856 | -9/Materials | Reached level 4 1077 | -9/Materials | Discovered new exit (range 11) 1110 | -9/Materials | Upgraded with Propulsion slot (x1) 1147 | -9/Materials | Discovered new exit (range 15) 1157 | -9/Materials | Entered Mines 1160 | -9/Mines | Learned location of Zion (-7) 1174 | -9/Mines | Discovered new exit (range 9) 1176 | -9/Mines | Learned location of Storage (-7) 1190 | -9/Mines | Assembled infested the area 1209 | -9/Mines | Assisted by bots powering up and referring to "LRC-V3" 1289 | -9/Mines | Upgraded with Weapon slot (x1) 1321 | -9/Mines | Destroyed 10 combat bots 1364 | -9/Mines | Discovered new exit (range 15) 1437 | -9/Mines | Reached level 5 1456 | -9/Mines | Deemed a non-threat by the Exiles lab entrance 1457 | -9/Mines | Discovered new exit (range 5) 1473 | -9/Mines | Entered Exiles 1473 | -9/Exiles | Accompanied by 2 allies 1487 | -9/Exiles | Met 8R-AWN 1498 | -9/Exiles | Met EX-HEX 1503 | -9/Exiles | Led the pair of lost Derelicts to a safe place 1514 | -9/Exiles | Met EX-BIN 1521 | -9/Exiles | Aligned with FarCom system 1522 | -9/Exiles | Given EX-Vault access code 1535 | -9/Exiles | Opened EX-Vault 1548 | -9/Exiles | Warned to stay clear of 0b10 Research branches 1637 | -9/Exiles | Attacked by the Exiles 1663 | -9/Exiles | Core integrity fell below 50% 1687 | -9/Exiles | Core integrity fell below 20% 1688 | -9/Exiles | Discovered new exit (range 14) 1748 | -9/Exiles | Destroyed by 8R-AWN with 8R-AWN's Boregun Last Messages --------------- 01711_ Penetrated by HV Slug. 01711_ Critical hit. 01711_ Hvy. Battle Rifle destroyed. 01711_ HV Slug penetrates Earth. 01711_ Penetrated by HV Slug. 01711_ Critical hit. 01711_ Lgt. Nuclear Core destroyed. 01711_ HV Slug penetrates Earth. 01713_ The unstable cave ceiling collapses. 01720_ HV Slug penetrates Wall. 01740_ Penetrated by HV Slug. 01740_ HV Slug penetrates Wall. 01740_ Penetrated by HV Slug. 01740_ HV Slug penetrates Wall. 01744_ HV Slug penetrates Earth. 01744_ HV Slug penetrates Wall. 01744_ HV Slug penetrates Earth. 01748_ Penetrated by HV Slug. 01748_ HV Slug penetrates Machine. 01748_ Penetrated by HV Slug. Map ----- +----------------------------------------------------+ | ?????????????????????????????????????????????????? | | ?????????????????????????????????????????????????? | | ?????????????????????????????????????????????????? | | ?????????????????????????????????????????????????? | | ?????????????????????????????????????????????????? | | ?????????????????????????????????????????????????? | | ?????????????????????????????????????????????????? | | ????????????????????????????????????????###??????? | | ???????????????????????????????????????# #??????? | | ??????????????????????????????????????# #??????? | | ?????????????????????????????????????? < #??????? | | ##???????????????????????????????????? #??????? | | "##??????????????????????????????????# ???????? | | ""##????????????????????????????????## #???????? | | #???????????????????????????????## ##??????? | | """#???????????????????????????????# #??????? | | " "#???????????#####???????????????# #??????? | | " "##?????????##" #??????????????## #??????? | | ""###???????#" #??#####??????## #????????? | | """#??????##"***#### ####### #####????? | | "#????### # # # ## # ### ##???? | | ##???# # # ; #???? | | ##?## # ;; ######?? | | ### ;; #?? | | #; aa ; # #####?? | | #### @ #####?????? | | ""#?# ## ###??????? | | #"""##?##### # ## ###????? | | ######?????####??#### ## ##???? | | ##???????????????????####### #???? | | ##??????????????????????????### #???? | | ""#?????????????????????????????### #???? | | "##??????????????????????????????#" ##??? | | """""##???????????????????????????????#### ###? | | ######???????????????????????????????????# ## | | ?????????????????????????????????????????## # | | ??????????????????????????????????????????### | | ????????????????????????????????????????????# | | ????????????????????????????????????????????## # | | ?????????????????????????????????????????????##### | | ?????????????????????????????????????????????????? | | ?????????????????????????????????????????????????? | | ?????????????????????????????????????????????????? | | ?????????????????????????????????????????????????? | | ?????????????????????????????????????????????????? | | ?????????????????????????????????????????????????? | | ?????????????????????????????????????????????????? | | ?????????????????????????????????????????????????? | | ?????????????????????????????????????????????????? | | ?????????????????????????????????????????????????? | +----------------------------------------------------+ Best States ------------- Heat Dissipation 25 Energy Generation 14 Energy Capacity 160 Matter Stores 300 Matter Capacity 300 Sight Range 16 Terrain Scan Density 10 Armor Coverage 150 Resistance: KI 5 Resistance: TH 5 Evasion (%) 54 Item Schematics ----------------- None Robot Schematics ------------------ None Fabricated ------------ Nothing Alien Tech Used ----------------- None Achievements -------------- None Challenges ------------ None RPGLIKE | -11 -10 -10 -9 -9 -9 --------- Run | Scr Mat Min Mat Min Exi Levels Raised 4 | . . 1 2 1 . XP Earned 9735 | 3000 1185 700 3200 1300 350 XP Spent 3555 | 1675 . 80 1300 500 . Upgrades 12 | 7 . 2 2 1 . Propulsion Slot 2 | 1 . . 1 . . Utility Slot 1 | 1 . . . . . Weapon Slot 1 | . . . . 1 . Core Integrity 3 | 1 . 2 . . . Mass Support 1 | 1 . . . . . Inventory Capacity 2 | 1 . . 1 . . KI Resistance % 1 | 1 . . . . . TH Resistance % 1 | 1 . . . . . Protomatter Created 577 | . 205 4 341 17 10 Integrity Restored 966 | . 272 12 484 198 . Core 815 | . 227 12 378 198 . Parts 151 | . 45 . 106 . . Protomatter Decayed 237 | . 28 . 80 129 . Game ------ Seed SniperHeartGuard Manual? 0 Play Time 00:21:55 Cumulative 330.2 hours Start 2021.06.06 @ 18:46:01 End 2021.06.06 @ 19:04:49 Sessions 1 Manual Loads 0 Difficulty Rogue Special Mode Winter2019/RPGLIKE Game No. 131 Rogue 131 Adventurer 0 Explorer 0 Win Type - Total 16 Types 14/0/1/1/0/0/0/0/0 Lore% 79 Gallery% 86 Achievement% 69 Wizard Run 0 Options --------- ASCII 0 Keyboard 0 Movement Mouse Keybinds 0 Fullscreen 2 Font 12/Smallcaps Map View 83x54 Tactical HUD 1 Map Filters NONE Filters NONE Steam X RUN: cf4ba0b7-dbeb-440d-90cd-de56dbbf7926